bitfinex-derivatives/quotes_SOLF0:USTF0_20251228
["timestamp","ask_amount","ask_price","bid_price","bid_amount"]
[1766963728274,10.05,124.15,124.09,11.32726718]
[1766963729177,0.05171383,124.13,124.11,0.05684188]
[1766963733787,0.05171383,124.13,124.11,1.40410906]
[1766963738689,0.05171383,124.13,124.11,0.05684188]
[1766963739290,10.05,124.11,124.06,9.98]
[1766963739679,10.05,124.11,124.06,11.32726718]
[1766963739881,17.3059,124.13,124.07,11.32726718]
[1766963740386,0.05512854,124.11,124.09,0.06153478]
[1766963755299,17.6249,124.15,124.09,10.40153478]
[1766963755499,18.97216718,124.15,124.09,10.34]
[1766963756094,17.6249,124.15,124.09,11.68726718]
[1766963756406,17.6249,124.15,124.11,0.05125204]
[1766963756407,0.05291823,124.13,124.11,0.05125204]
[1766963757404,2.04104062,124.17,124.12,10.34]
[1766963757405,19.66464062,124.17,124.12,10.34]
[1766963757607,2.04104062,124.17,124.13,11.68726718]
[1766963757798,10.37,124.19,124.13,11.68726718]
[1766963758197,0.06067202,124.17,124.15,0.05607678]
[1766963760504,10.37,124.19,124.15,10.39607678]
[1766963761400,10.37,124.19,124.15,0.05607678]
[1766963779528,9.38,124.21,124.16,11.53367367]
[1766963779736,9.38,124.21,124.17,0.05637067]
[1766963783035,9.38,124.19,124.13,9.43]
[1766963783540,9.38,124.18,124.13,9.43]
[1766963784146,0.05152043,124.17,124.14,0.05629881]
[1766963784541,0.05152043,124.17,124.14,9.48629881]
[1766963784839,9.38,124.19,124.14,9.48629881]
[1766963785340,9.38,124.21,124.14,9.48629881]
[1766963786641,9.38,124.21,124.15,9.43]
[1766963786843,9.38,124.21,124.17,0.05690041]
[1766963789346,9.38,124.23,124.17,9.48690041]
[1766963790043,9.38,124.22,124.17,9.48690041]
[1766963807049,16.6303,124.22,124.17,0.05690041]
[1766963807256,10.17,124.21,124.17,0.05690041]
[1766963810758,10.17,124.21,124.17,9.90690041]
[1766963813157,7.2495,124.24,124.17,9.90690041]
[1766963813357,9.91,124.25,124.19,9.97]
[1766963813662,9.91,124.25,124.21,0.05780107]
[1766963824877,9.91,124.25,124.18,19.32587367]
[1766963825879,0.05462055,124.23,124.2,0.05285765]
[1766963827685,0.05462055,124.23,124.2,1.39798996]
[1766963832890,0.05462055,124.23,124.2,0.05285765]
[1766963835895,0.05462055,124.23,124.2,10.03285765]
[1766963836301,0.05462055,124.23,124.2,11.37798996]
[1766963841098,0.05462055,124.23,124.2,18.62928996]
[1766963841302,0.05462055,124.23,124.22,11.32513231]
[1766963841492,9.85,124.27,124.22,11.32513231]
[1766963841998,9.85,124.27,124.23,1.34513231]
[1766963842596,9.85,124.3,124.24,11.38640862]
[1766963842793,9.85,124.3,124.26,0.0594112]
[1766963845910,9.85,124.29,124.22,7.2499]
[1766963846093,9.85,124.29,124.22,17.2299]
[1766963846295,9.85,124.29,124.23,11.32513231]
[1766963847003,0.0561415,124.27,124.25,0.05501379]
[1766963849102,11.88493744,124.31,124.25,11.3801461]
[1766963850707,19.13013744,124.31,124.25,11.3801461]
[1766963850911,9.85,124.3,124.25,11.3801461]
[1766963851497,9.85,124.3,124.25,1.4001461]
[1766963851902,9.85,124.3,124.26,1.34513231]
[1766963855914,9.85,124.34,124.29,1.34513231]
[1766963856119,9.85,124.34,124.3,0.05254322]
[1766963859312,9.85,124.34,124.3,1.39767553]
[1766963860714,9.85,124.34,124.31,1.34513231]
[1766963860911,9.85,124.34,124.3,1.39767553]
[1766963861109,9.85,124.34,124.31,1.34513231]
[1766963861323,9.85,124.34,124.3,1.39767553]
[1766963862018,9.85,124.36,124.31,1.34513231]
[1766963862317,9.85,124.36,124.32,1.34513231]
[1766963862512,9.85,124.35,124.31,1.34513231]
[1766963863113,9.85,124.35,124.3,11.32513231]
[1766963863424,0.05532658,124.34,124.31,0.05960196]
[1766963865625,0.05532658,124.34,124.31,1.40473427]
[1766963866212,0.05532658,124.34,124.31,0.05960196]
[1766963866920,0.05532658,124.34,124.31,9.88960196]
[1766963867125,0.05532658,124.34,124.31,0.05960196]
[1766963868826,9.59532658,124.34,124.31,0.05960196]
[1766963869018,0.05532658,124.34,124.31,0.05960196]
[1766963869221,0.05532658,124.34,124.31,11.23473427]
[1766963869722,0.05532658,124.34,124.32,1.34513231]
[1766963870034,9.54,124.39,124.33,1.34513231]
[1766963870521,9.54,124.41,124.36,1.34513231]
[1766963870922,9.54,124.41,124.37,0.05920881]
[1766963872620,9.83,124.43,124.38,1.34513231]
[1766963872819,9.83,124.43,124.37,11.44434112]
[1766963873327,9.83,124.41,124.37,0.05920881]
[1766963873514,9.83,124.43,124.38,1.34513231]
[1766963873719,9.83,124.43,124.37,11.44434112]
[1766963873919,11.17513231,124.43,124.37,0.05920881]
[1766963875819,9.83,124.43,124.37,0.05920881]
[1766963876015,9.83,124.43,124.37,1.40434112]
[1766963876330,9.83,124.43,124.37,11.44434112]
[1766963878524,11.17513231,124.43,124.37,10.09920881]
[1766963878725,11.17513231,124.42,124.37,0.05920881]
[1766963880023,9.83,124.42,124.37,0.05920881]
[1766963881839,11.17513231,124.41,124.34,11.38513231]
[1766963882029,11.17513231,124.4,124.34,10.04]
[1766963882940,0.05329888,124.38,124.36,0.05461055]
[1766963888444,0.00329888,124.38,124.36,10.09461055]
[1766963889939,9.83,124.43,124.37,12.13606059]
[1766963890135,9.83,124.45,124.37,12.13606059]
[1766963890334,9.83,124.45,124.38,17.2808]
[1766963890731,0.02172294,124.43,124.4,0.05610877]
[1766963896559,9.97172294,124.43,124.36,7.2417]
[1766963897151,9.97172294,124.43,124.36,17.3517]
[1766963897353,9.97172294,124.43,124.38,0.06177714]
[1766963897554,17.20982294,124.43,124.38,0.06177714]
[1766963897959,9.95,124.42,124.38,0.06177714]
[1766963900949,9.95,124.41,124.34,10.11]
[1766963901153,9.95,124.41,124.34,12.20606059]
[1766963902065,0.05071649,124.39,124.36,10.16309915]
[1766963904860,0.05071649,124.39,124.36,0.05309915]
[1766963906362,0.05071649,124.39,124.36,7.29509915]
[1766963910469,0.05071649,124.39,124.36,9.39115974]
[1766963910769,9.95,124.44,124.38,12.20606059]
[1766963911773,0.06133102,124.42,124.4,0.05465716]
[1766963920373,10.01133102,124.42,124.36,12.20606059]
[1766963920577,10.01133102,124.42,124.36,10.11]
[1766963921680,10.01133102,124.42,124.38,0.05904341]
[1766963925180,9.95,124.41,124.38,0.05904341]
[1766963926083,9.95,124.41,124.35,7.2422]
[1766963927078,0.05343625,124.39,124.37,0.05229557]
[1766963948500,0.05343625,124.39,124.37,1.39368702]
[1766963952901,0.05343625,124.39,124.37,0.05229557]
[1766963961312,0.05343625,124.39,124.37,1.39368702]
[1766963961510,0.05343625,124.39,124.37,0.05229557]
[1766963961708,0.05343625,124.39,124.37,1.39368702]
[1766963969423,0.05343625,124.39,124.37,0.05229557]
[1766963969722,0.05343625,124.39,124.37,1.39368702]
[1766963971325,9.17,124.42,124.37,11.39368702]
[1766963971525,9.17,124.42,124.39,1.34139145]
[1766963972520,9.23074981,124.42,124.39,1.34139145]
[1766963975524,16.46934981,124.42,124.37,0.05229557]
[1766963975731,15.1054544,124.41,124.37,0.00229557]
[1766963975924,9.17,124.41,124.37,0.00229557]
[1766963980537,16.4093,124.41,124.37,0.00229557]
[1766963980835,9.17,124.4,124.37,0.00229557]
[1766963985646,7.2393,124.41,124.37,0.00229557]
[1766963985647,9.89074981,124.42,124.39,1.34139145]
[1766963986634,9.89074981,124.42,124.38,1.34139145]
[1766963988531,9.89074981,124.42,124.37,1.34368702]
[1766963989031,9.89074981,124.42,124.37,10.48368702]
[1766963990339,9.89074981,124.42,124.37,9.14229557]
[1766963990837,9.89074981,124.42,124.4,1.34139145]
[1766963990838,0.06074981,124.42,124.4,1.34139145]
[1766963991037,0.06074981,124.42,124.4,1.39415642]
[1766963993840,0.06074981,124.42,124.4,0.05276497]
[1766963994042,9.06074981,124.42,124.4,0.00276497]
[1766963999548,0.06074981,124.42,124.4,0.00276497]
[1766964030481,9.80074981,124.42,124.4,0.00276497]
[1766964032281,9.80074981,124.42,124.37,7.2414]
[1766964032580,9.80074981,124.42,124.35,8.96]
[1766964032581,11.89607147,124.42,124.35,16.2022]
[1766964032789,9.74,124.39,124.33,8.96]
[1766964033278,9.74,124.39,124.35,0.05811094]
[1766964033467,0.05889061,124.37,124.35,0.05811094]
[1766964044586,9.79889061,124.37,124.32,2.09532166]
[1766964044785,9.79889061,124.37,124.32,11.05532166]
[1766964045680,9.79889061,124.37,124.33,0.05188645]
[1766964056495,0.05889061,124.37,124.34,2.09532166]
[1766964056701,9.21,124.39,124.34,2.09532166]
[1766964057597,9.26677991,124.38,124.34,9.33852166]
[1766964057792,9.26677991,124.38,124.35,0.05448443]
[1766964062205,9.26677991,124.38,124.35,0.00448443]
[1766964063497,9.26677991,124.38,124.3,9.34042166]
[1766964063698,9.21,124.38,124.3,2.09532166]
[1766964064104,9.21,124.38,124.3,11.29532166]
[1766964064496,9.26315725,124.35,124.33,0.05869371]
[1766964064806,9.21,124.35,124.31,7.2449]
[1766964065611,0.05787693,124.34,124.32,0.05118345]
[1766964068508,0.05787693,124.34,124.32,1.393576]
[1766964074404,0.05787693,124.34,124.32,0.05118345]
[1766964074612,9.26787693,124.34,124.3,1.34239255]
[1766964075604,9.26787693,124.34,124.31,0.05101196]
[1766964076714,9.26787693,124.34,124.32,1.34239255]
[1766964078815,9.26787693,124.34,124.31,0.05101196]
[1766964079807,9.26787693,124.34,124.31,1.39340451]
[1766964082517,9.26787693,124.34,124.32,1.34239255]
[1766964085516,9.26787693,124.34,124.32,0.00239255]
[1766964086719,9.26787693,124.34,124.32,0.05677552]
[1766964090020,9.26787693,124.34,124.32,0.05438297]
[1766964090521,9.26787693,124.34,124.32,0.00438297]
[1766964102827,9.26787693,124.34,124.31,0.00677552]
[1766964103028,9.26787693,124.34,124.3,8.58789255]
[1766964103915,9.26787693,124.34,124.31,0.06000098]
[1766964113842,9.26787693,124.34,124.31,1.40239353]
[1766964124644,9.26787693,124.34,124.32,0.00239255]
[1766964128642,9.26787693,124.34,124.31,1.40239353]
[1766964130457,9.26787693,124.34,124.31,0.06000098]
[1766964149373,0.05787693,124.34,124.31,0.06000098]
[1766964149964,8.75787693,124.34,124.31,0.06000098]
[1766964156377,8.7,124.36,124.32,10.92779237]
[1766964156670,8.7,124.38,124.34,2.09779237]
[1766964157472,0.05612335,124.37,124.35,0.06159888]
[1766964157667,8.7,124.38,124.35,0.06159888]
[1766964158777,8.75257684,124.38,124.35,0.06159888]
[1766964170279,10.91313264,124.42,124.36,11.52779237]
[1766964171473,0.0567544,124.4,124.38,0.05094622]
[1766964173273,8.7667544,124.4,124.36,2.09779237]
[1766964174283,8.7667544,124.4,124.37,0.05327899]
[1766964181886,8.7667544,124.4,124.34,2.09779237]
[1766964182875,8.7667544,124.4,124.36,0.0573862]
[1766964184087,8.7667544,124.4,124.34,2.09779237]
[1766964184281,8.7667544,124.4,124.33,8.54]
[1766964184984,8.7667544,124.4,124.35,0.05138192]
[1766964186186,16.0065544,124.4,124.35,0.00138192]
[1766964186381,8.71,124.39,124.35,0.00138192]
[1766964193393,7.2965544,124.4,124.29,110.8057]
[1766964193394,8.71,124.38,124.29,110.8057]
[1766964193591,8.71,124.38,124.32,1.34207534]
[1766964193896,8.71,124.38,124.31,1.34207534]
[1766964194191,8.71,124.38,124.32,1.34207534]
[1766964194493,8.71,124.35,124.32,1.34207534]
[1766964195495,8.71,124.35,124.32,1.40131914]
[1766964196296,8.71,124.35,124.33,0.00207534]
[1766964201595,8.71,124.35,124.32,1.40131914]
[1766964217605,8.71,124.35,124.29,7.246]
[1766964217800,8.71,124.35,124.3,1.34207534]
[1766964218596,0.05982584,124.34,124.31,0.05450227]
[1766964218907,9.43982584,124.34,124.31,0.05450227]
[1766964221211,9.43982584,124.34,124.32,1.34207534]
[1766964222817,9.43982584,124.34,124.27,16.3669]
[1766964223109,9.38,124.34,124.29,1.34207534]
[1766964223496,9.38,124.34,124.28,1.34207534]
[1766964223701,7.87,124.31,124.28,1.34207534]
[1766964226110,7.87,124.31,124.29,1.34207534]
[1766964227204,7.87,124.31,124.26,15.5178]
[1766964227404,7.87,124.31,124.28,1.34207534]
[1766964231616,7.87,124.31,124.27,1.34207534]
[1766964231819,6.27508839,124.3,124.27,1.34207534]
[1766964232613,6.27508839,124.3,124.26,1.34207534]
[1766964232915,6.27508839,124.3,124.27,1.34207534]
[1766964240216,6.27508839,124.3,124.27,0.00207534]
[1766964240422,6.27508839,124.3,124.25,7.2483]
[1766964240616,6.27508839,124.3,124.26,1.34207534]
[1766964240928,6.27508839,124.3,124.27,0.00207534]
[1766964246426,2.9,124.37,124.3,8.23]
[1766964246732,2.9,124.37,124.34,0.00207534]
[1766964247326,2.9,124.37,124.33,1.34207534]
[1766964247524,0.05673958,124.36,124.31,7.2448]
[1766964247725,0.05673958,124.36,124.34,0.00207534]
[1766964249330,0.05673958,124.36,124.33,1.34207534]
[1766964249632,0.05673958,124.36,124.31,0.00207534]
[1766964251434,0.05673958,124.36,124.3,1.34207534]
[1766964252536,0.05673958,124.36,124.29,2.09807448]
[1766964252732,0.0549709,124.34,124.29,2.09807448]
[1766964256838,2.15304538,124.34,124.24,9.57807448]
[1766964257036,0.05814904,124.3,124.24,9.57807448]
[1766964257235,0.05814904,124.3,124.25,7.48]
[1766964263239,31.54577189,124.42,124.29,7.48]
[1766964263447,31.54577189,124.42,124.28,2.09807448]
[1766964263448,2.09807448,124.4,124.3,9.57807448]
[1766964263942,7.2413,124.38,124.3,9.57807448]
[1766964264143,2.09807448,124.4,124.3,9.57807448]
[1766964264347,0.06068787,124.36,124.34,0.00446881]
[1766964266450,0.49553119,124.34,124.3,9.57807448]
[1766964266646,7.2416,124.37,124.3,9.57807448]
[1766964267448,0.05674424,124.35,124.3,9.57807448]
[1766964267742,0.05674424,124.35,124.31,7.48]
[1766964267948,0.05674424,124.35,124.32,2.09807448]
[1766964268755,0.05674424,124.35,124.32,9.57807448]
[1766964270248,7.241,124.38,124.33,7.48]
[1766964270646,2.09807448,124.42,124.33,7.48]
[1766964271047,7.2404,124.39,124.33,7.48]
[1766964271247,0.06177241,124.37,124.35,0.06149845]
[1766964276552,0.06177241,124.37,124.3,7.48]
[1766964276853,2.09807448,124.4,124.31,7.48]
[1766964277656,7.29966454,124.37,124.31,7.48]
[1766964282659,7.29966454,124.37,124.28,7.48]
[1766964282660,2.09807448,124.34,124.28,7.48]
[1766964282859,0.06096827,124.32,124.28,7.48]
[1766964314498,0.06096827,124.32,124.28,8.82322555]
[1766964317701,7.30556827,124.32,124.27,6.41]
[1766964323308,0.06096827,124.32,124.27,6.41]
[1766964323507,1.40419382,124.32,124.27,6.41]
[1766964323705,1.34322555,124.31,124.25,6.41]
[1766964323908,7.30542699,124.29,124.25,6.41]
[1766964326417,8.64865254,124.29,124.23,6.41]
[1766964327119,7.2469,124.28,124.23,6.41]
[1766964327317,1.40235254,124.29,124.23,6.41]
[1766964328618,7.2474,124.27,124.23,6.41]
[1766964328816,0.05746955,124.26,124.23,6.41]
[1766964335926,0.05746955,124.26,124.2,1.34322555]
[1766964336222,0.05746955,124.26,124.17,7.2529]
[1766964336223,0.05370199,124.24,124.19,1.34322555]
[1766964336627,0.05370199,124.24,124.18,1.34322555]
[1766964337217,0.05370199,124.24,124.19,1.34322555]
[1766964337421,0.05562363,124.23,124.19,1.34322555]
[1766964338023,0.05562363,124.23,124.2,6.41]
[1766964339434,7.2491,124.24,124.2,6.41]
[1766964339740,1.34322555,124.3,124.23,6.41]
[1766964340035,7.22179104,124.31,124.23,7.75322555]
[1766964340345,5.87856549,124.3,124.23,7.75322555]
[1766964340542,7.30584228,124.28,124.25,0.05678277]
[1766964346646,0.00321723,124.25,124.24,7.75322555]
[1766964347142,7.30584228,124.28,124.24,7.75322555]
[1766964347840,7.2461,124.3,124.26,7.75322555]
[1766964348940,0.06072575,124.29,124.27,0.05463495]
[1766964356546,7.30692575,124.29,124.27,0.05463495]
[1766964359443,7.30692575,124.29,124.26,3.495e-05]
[1766964363452,7.30692575,124.29,124.24,6.87]
[1766964363453,7.2469,124.28,124.24,6.87]
[1766964363844,7.2469,124.28,124.24,8.21322555]
[1766964368662,13.5569,124.28,124.24,8.21322555]
[1766964369658,7.2469,124.28,124.24,8.21322555]
[1766964374959,7.2469,124.28,124.24,6.87]
[1766964381855,14.7574,124.27,124.21,7.72]
[1766964382059,0.06017156,124.25,124.21,7.72]
[1766964382861,0.00017156,124.25,124.21,7.72]
[1766964383858,0.00017156,124.25,124.23,7.72]
[1766964389767,0.00017156,124.25,124.22,0.05482655]
[1766964392373,0.00017156,124.25,124.22,7.77482655]
[1766964400579,7.24887156,124.25,124.22,7.77482655]
[1766964407283,0.00017156,124.25,124.22,7.77482655]
[1766964409183,0.00017156,124.25,124.22,0.05482655]
[1766964422500,8.61017156,124.25,124.22,0.05482655]
[1766964423604,7.2493,124.24,124.22,0.05482655]
[1766964424208,8.61017156,124.25,124.22,0.05482655]
[1766964425002,15.85877156,124.25,124.22,0.05482655]
[1766964434611,0.00017156,124.25,124.22,8.76482655]
[1766964434808,8.61,124.31,124.22,8.76482655]
[1766964435005,8.61,124.29,124.22,8.71]
[1766964435209,5.93344313,124.28,124.22,8.71]
[1766964435617,23.10074313,124.28,124.22,8.71]
[1766964435817,17.1673,124.28,124.23,2.10025286]
[1766964436018,0.05881333,124.26,124.24,0.05219571]
[1766964438509,0.05881333,124.26,124.24,1.3962327]
[1766964441120,0.05881333,124.26,124.24,0.05219571]
[1766964470937,1.40071243,124.32,124.24,10.08219571]
[1766964470938,9.99,124.3,124.24,10.08219571]
[1766964471132,15.93502904,124.29,124.24,10.03]
[1766964471335,9.99,124.29,124.24,10.03]
[1766964471940,0.05890459,124.28,124.25,0.05955669]
[1766964475342,10.04890459,124.28,124.25,0.05955669]
[1766964481964,11.39294158,124.28,124.22,9.88]
[1766964482163,11.76403699,124.27,124.22,9.88]
[1766964482350,0.05890459,124.28,124.22,9.88]
[1766964482557,10.47890459,124.28,124.22,9.88]
[1766964482758,10.47890459,124.28,124.22,11.22403699]
[1766964482957,10.47890459,124.28,124.24,0.05281189]
[1766964492366,17.72580459,124.28,124.24,0.05281189]
[1766964498482,9.91,124.27,124.24,0.05281189]
[1766964498684,17.1574,124.27,124.24,0.05281189]
[1766964508190,7.30590459,124.28,124.24,10.39281189]
[1766964509786,17.21590459,124.28,124.24,10.39281189]
[1766964509987,17.21590459,124.28,124.24,0.05281189]
[1766964511584,9.91,124.27,124.24,0.00281189]
[1766964514090,17.1576,124.27,124.24,0.00281189]
[1766964514293,9.91,124.27,124.2,10.34]
[1766964515192,0.059786,124.25,124.22,0.02089995]
[1766964516391,17.218386,124.25,124.22,0.02089995]
[1766964520700,9.91,124.24,124.22,0.00089995]
[1766964536405,0.059786,124.25,124.22,12.51169832]
[1766964542318,10.89,124.28,124.22,12.51169832]
[1766964543223,0.05625893,124.26,124.22,12.51169832]
[1766964547925,18.1357,124.3,124.22,12.51169832]
[1766964548124,18.1357,124.3,124.24,12.51079837]
[1766964548928,0.05344811,124.28,124.26,0.05436755]
[1766964559035,12.48374714,124.32,124.26,10.41436755]
[1766964559231,12.48374714,124.32,124.26,12.51516592]
[1766964559429,12.48374714,124.32,124.26,10.41436755]
[1766964559823,2.02374714,124.32,124.26,10.41436755]
[1766964560030,0.00229315,124.3,124.28,10.36]
[1766964560230,17.7038,124.34,124.28,10.36]
[1766964560429,10.46,124.34,124.28,10.36]
[1766964560634,10.46,124.34,124.28,11.70314095]
[1766964561337,0.05115099,124.32,124.3,0.05557438]
[1766964563235,11.85429194,124.32,124.25,10.36]
[1766964563544,11.80314095,124.32,124.25,10.36]
[1766964564031,11.80314095,124.32,124.25,11.70314095]
[1766964564233,0.05509634,124.3,124.27,0.06003755]
[1766964575750,10.51509634,124.3,124.27,0.06003755]
[1766964575955,10.51509634,124.3,124.25,1.34314095]
[1766964576950,10.51509634,124.3,124.26,0.05884366]
[1766964585852,10.51509634,124.3,124.26,1.40198461]
[1766964600967,10.43,124.29,124.23,95.1]
[1766964601163,10.43,124.29,124.25,1.34314095]
[1766964601466,10.43,124.34,124.28,1.34314095]
[1766964601658,10.43,124.32,124.28,1.34314095]
[1766964602062,0.06091877,124.31,124.29,0.04823056]
[1766964602670,10.49091877,124.31,124.28,1.34314095]
[1766964605372,10.49091877,124.31,124.28,0.00314095]
[1766964605970,10.49091877,124.31,124.27,1.34314095]
[1766964606269,10.49091877,124.31,124.25,11.95314095]
[1766964606568,9.02,124.3,124.23,105.71]
[1766964606779,9.07882716,124.28,124.22,11.95314095]
[1766964607068,9.07882716,124.28,124.2,7.2511]
[1766964607069,9.07882716,124.28,124.2,1.34314095]
[1766964607269,9.03,124.24,124.19,11.95314095]
[1766964607476,9.09105155,124.23,124.19,11.95314095]
[1766964612579,0.06105155,124.23,124.19,11.95314095]
[1766964612773,0.06105155,124.23,124.21,1.34314095]
[1766964613371,9.15105155,124.23,124.19,11.95314095]
[1766964614382,9.15105155,124.23,124.2,1.34314095]
[1766964616282,0.06105155,124.23,124.21,1.34314095]
[1766964618383,0.06105155,124.23,124.2,11.77314095]
[1766964620483,0.06105155,124.23,124.2,10.43]
[1766964623174,9.23,124.27,124.21,12.53139175]
[1766964624278,0.0535139,124.25,124.23,0.05307689]
[1766964626188,0.0535139,124.25,124.23,2.15446864]
[1766964627584,9.23,124.27,124.23,12.58446864]
[1766964627985,9.26,124.29,124.23,12.58446864]
[1766964628185,9.27,124.31,124.25,12.53139175]
[1766964628586,0.05566053,124.29,124.27,0.05336553]
[1766964631296,9.25599836,124.32,124.27,12.58475728]
[1766964631488,18.60599836,124.32,124.27,12.58475728]
[1766964631686,9.35,124.31,124.27,0.05336553]
[1766964632287,9.3,124.3,124.22,9.35119175]
[1766964632485,9.3,124.27,124.19,10.43]
[1766964632686,9.3,124.25,124.17,10.43]
[1766964633390,0.05745542,124.22,124.17,10.43]
[1766964634386,0.05745542,124.22,124.18,0.05389402]
[1766964636293,9.16745542,124.22,124.18,0.05389402]
[1766964636793,16.41785542,124.22,124.18,0.05389402]
[1766964642898,8.92,124.21,124.18,0.05389402]
[1766964661822,0.05745542,124.22,124.18,0.05389402]
[1766964662022,0.05745542,124.22,124.19,2.10139175]
[1766964662420,8.26,124.25,124.19,12.31139175]
[1766964663219,18.60209011,124.32,124.16,2.10139175]
[1766964663220,8.26,124.27,124.21,12.31139175]
[1766964663422,0.05987765,124.25,124.23,0.06191846]
[1766964664615,0.05987765,124.25,124.23,2.16331021]
[1766964664818,8.26,124.27,124.23,2.16331021]
[1766964665723,0.05644228,124.26,124.23,2.16331021]
[1766964666129,0.05644228,124.26,124.23,12.37331021]
[1766964669724,0.05644228,124.26,124.23,0.06191846]
[1766964669927,8.15644228,124.26,124.23,0.00191846]
[1766964671132,8.02,124.25,124.23,0.00191846]
[1766964671717,8.02,124.25,124.18,2.10139175]
[1766964671718,8.0,124.24,124.18,10.21]
[1766964671917,8.0,124.24,124.16,104.49479175]
[1766964671918,8.0,124.24,124.16,107.45139175]
[1766964672122,8.0,124.24,124.16,105.35]
[1766964672428,8.0,124.24,124.16,10.21]
[1766964672928,7.9855649,124.21,124.19,0.05185261]
[1766964673136,10.08695665,124.21,124.19,0.05185261]
[1766964674425,10.08695665,124.21,124.13,10.21]
[1766964674625,17.28239175,124.21,124.13,10.21]
[1766964674826,7.88,124.23,124.14,10.21]
[1766964675019,7.88,124.23,124.13,7.2552]
[1766964675020,7.88,124.23,124.16,10.21]
[1766964675332,0.05587513,124.21,124.18,0.05513822]
[1766964678930,9.35009175,124.25,124.18,0.05513822]
[1766964678931,15.0387,124.25,124.18,10.26513822]
[1766964679135,7.79,124.25,124.18,10.26513822]
[1766964680034,0.06014839,124.23,124.18,17.51753822]
[1766964680336,7.89014839,124.23,124.18,10.26513822]
[1766964681035,7.89014839,124.23,124.18,0.05513822]
[1766964681536,9.99154014,124.23,124.18,0.05513822]
[1766964681930,17.24134014,124.23,124.18,0.05513822]
[1766964682439,7.77,124.22,124.18,0.05513822]
[1766964682636,7.72,124.21,124.15,1.34591682]
[1766964683232,7.72,124.21,124.14,11.55591682]
[1766964683537,0.05400454,124.19,124.16,0.05478339]
[1766964691745,7.56,124.23,124.17,11.55591682]
[1766964691943,7.61,124.25,124.18,11.55591682]
[1766964692742,0.05653394,124.23,124.2,0.06065824]
[1766964699649,14.4978,124.27,124.21,11.55591682]
[1766964699950,7.31,124.26,124.17,10.21]
[1766964700155,7.31,124.26,124.19,11.55591682]
[1766964700646,0.0523988,124.24,124.21,0.06133574]
[1766964706254,7.0323988,124.24,124.21,0.06133574]
[1766964710557,7.2498,124.23,124.21,0.06133574]
[1766964711359,7.0323988,124.24,124.21,0.06133574]
[1766964722260,0.0523988,124.24,124.21,9.49133574]
[1766964722465,6.29,124.28,124.23,10.77591682]
[1766964722657,6.29,124.28,124.24,1.34591682]
[1766964723360,6.3,124.31,124.24,10.77591682]
[1766964723560,6.35750837,124.29,124.26,0.05369607]
[1766964726066,6.35750837,124.29,124.26,0.00369607]
[1766964729462,6.06,124.28,124.26,0.00369607]
[1766964729764,7.40591682,124.28,124.26,0.00369607]
[1766964730566,14.65281682,124.28,124.26,0.00369607]
[1766964730868,6.02,124.27,124.26,0.00369607]
[1766964731569,0.49630393,124.25,124.2,10.77591682]
[1766964731769,13.2676,124.27,124.2,10.77591682]
[1766964732561,0.0592453,124.25,124.22,0.06120883]
[1766964735276,5.8992453,124.25,124.22,0.00120883]
[1766964736270,5.81,124.28,124.24,1.34591682]
[1766964736471,1.34591682,124.31,124.24,1.34591682]
[1766964736775,5.81,124.3,124.25,1.34591682]
[1766964737170,13.056,124.3,124.25,10.41591682]
[1766964737473,0.05408104,124.29,124.26,0.05852532]
[1766964737877,0.05408104,124.29,124.26,1.40444214]
[1766964738077,0.05408104,124.29,124.26,10.47444214]
[1766964738278,5.78,124.32,124.27,1.34591682]
[1766964739278,0.05574731,124.31,124.27,1.34591682]
[1766964739963,0.05574731,124.31,124.26,9.12852532]
[1766964739964,0.05574731,124.31,124.28,10.41591682]
[1766964741075,5.75574731,124.31,124.26,9.12852532]
[1766964741575,5.75574731,124.31,124.26,10.47444214]
[1766964744480,5.75574731,124.31,124.26,9.12852532]
[1766964744873,0.05574731,124.31,124.26,9.12852532]
[1766964745471,7.2434,124.34,124.28,9.07]
[1766964745676,5.57,124.35,124.28,9.07]
[1766964746582,0.05584108,124.33,124.3,0.05188746]
[1766964749479,5.57584108,124.33,124.23,7.2494]
[1766964749681,5.52,124.33,124.24,2.09919959]
[1766964750585,0.05213909,124.3,124.27,0.05145225]
[1766964751880,7.2437,124.34,124.28,2.09919959]
[1766964752082,2.03660506,124.36,124.31,9.07]